[Event "Titled Tuesday Blitz July 4 Early 2023"]
[White "Cruz, William Ferreira Da"]
[Black "Quintiliano Pinto, Renato R."]
[WhiteFideId "2118050"]
[BlackFideId "2117568"]
[WhiteElo "2400"]
[BlackElo "2683"]
[Result "0-1"]
[Round "1"]
[TimeControl "180+2"]
[Date "2023.07.04"]
[WhiteClock "0:00:03"]
[BlackClock "0:00:07"]
[Board "112"]

1. d4 {[%clk 0:02:59]}  Nf6 {[%clk 0:02:58]} 2. c4 {[%clk 0:02:59]}  e6 {[%clk 0:02:57]} 3. Nc3 {[%clk 0:02:59]}  d5 {[%clk 0:02:57]} 4. cxd5 {[%clk 0:02:58]}  exd5 {[%clk 0:02:56]} 5. Bg5 {[%clk 0:02:58]}  c6 {[%clk 0:02:56]} 6. e3 {[%clk 0:02:58]}  Be7 {[%clk 0:02:55]} 7. Bd3 {[%clk 0:02:58]}  Nbd7 {[%clk 0:02:52]} 8. Qc2 {[%clk 0:02:57]}  Nh5 {[%clk 0:02:51]} 9. Bxe7 {[%clk 0:02:53]}  Qxe7 {[%clk 0:02:52]} 10. Nge2 {[%clk 0:02:47]}  g6 {[%clk 0:02:47]} 11. O-O {[%clk 0:02:36]}  O-O {[%clk 0:02:46]} 12. Rab1 {[%clk 0:02:27]}  Ndf6 {[%clk 0:02:32]} 13. b4 {[%clk 0:02:14]}  a6 {[%clk 0:02:23]} 14. a4 {[%clk 0:02:13]}  Re8 {[%clk 0:02:15]} 15. b5 {[%clk 0:02:09]}  axb5 {[%clk 0:02:15]} 16. axb5 {[%clk 0:02:09]}  c5 {[%clk 0:02:16]} 17. dxc5 {[%clk 0:02:00]}  Qxc5 {[%clk 0:02:17]} 18. Nd4 {[%clk 0:01:29]}  Bd7 {[%clk 0:02:15]} 19. Na4 {[%clk 0:01:06]}  Qa7 {[%clk 0:00:47]} 20. Ra1 {[%clk 0:01:04]}  Rac8 {[%clk 0:00:45]} 21. Qb2 {[%clk 0:01:01]}  Ng4 {[%clk 0:00:32]} 22. Be2 {[%clk 0:00:48]}  Nhf6 {[%clk 0:00:25]} 23. h3 {[%clk 0:00:35]}  Ne5 {[%clk 0:00:24]} 24. b6 {[%clk 0:00:21]}  Qb8 {[%clk 0:00:23]} 25. Bb5 {[%clk 0:00:22]}  Nc4 {[%clk 0:00:17]} 26. Bxc4 {[%clk 0:00:21]}  Rxc4 {[%clk 0:00:15]} 27. Nc3 {[%clk 0:00:18]}  Rec8 {[%clk 0:00:14]} 28. Rfc1 {[%clk 0:00:18]}  Qe5 {[%clk 0:00:14]} 29. Nce2 {[%clk 0:00:17]}  Ne4 {[%clk 0:00:13]} 30. Rxc4 {[%clk 0:00:16]}  dxc4 {[%clk 0:00:13]} 31. Nc3 {[%clk 0:00:15]}  Nc5 {[%clk 0:00:14]} 32. Ra7 {[%clk 0:00:12]}  Qd6 {[%clk 0:00:13]} 33. Qb4 {[%clk 0:00:11]}  Rd8 {[%clk 0:00:09]} 34. Qxc4 {[%clk 0:00:11]}  Qxb6 {[%clk 0:00:09]} 35. Ra1 {[%clk 0:00:09]}  Be6 {[%clk 0:00:09]} 36. Na4 {[%clk 0:00:08]}  Nxa4 {[%clk 0:00:08]} 37. Qxa4 {[%clk 0:00:08]}  Bd5 {[%clk 0:00:08]} 38. Qa5 {[%clk 0:00:09]}  Qxa5 {[%clk 0:00:08]} 39. Rxa5 {[%clk 0:00:10]}  Kf8 {[%clk 0:00:08]} 40. Rb5 {[%clk 0:00:10]}  Ke7 {[%clk 0:00:08]} 41. Kh2 {[%clk 0:00:10]}  Rd7 {[%clk 0:00:08]} 42. Nb3 {[%clk 0:00:09]}  Bc6 {[%clk 0:00:08]} 43. Rb4 {[%clk 0:00:08]}  Rd3 {[%clk 0:00:08]} 44. Nd4 {[%clk 0:00:07]}  Rd2 {[%clk 0:00:07]} 45. Kg3 {[%clk 0:00:07]}  Bd5 {[%clk 0:00:07]} 46. f3 {[%clk 0:00:07]}  f5 {[%clk 0:00:07]} 47. Nb5 {[%clk 0:00:06]}  Bc6 {[%clk 0:00:07]} 48. Nc3 {[%clk 0:00:06]}  Rd3 {[%clk 0:00:06]} 49. Na4 {[%clk 0:00:06]}  Rxe3 {[%clk 0:00:06]} 50. Nc5 {[%clk 0:00:06]}  Re2 {[%clk 0:00:06]} 51. Nxb7 {[%clk 0:00:06]}  f4+ {[%clk 0:00:06]} 52. Kxf4 {[%clk 0:00:06]}  Rxg2 {[%clk 0:00:07]} 53. Na5 {[%clk 0:00:06]}  Bd5 {[%clk 0:00:07]} 54. Nc4 {[%clk 0:00:06]}  g5+ {[%clk 0:00:06]} 55. Ke3 {[%clk 0:00:06]}  Rg3 {[%clk 0:00:06]} 56. Ne5 {[%clk 0:00:06]}  Rxh3 {[%clk 0:00:06]} 57. Rb5 {[%clk 0:00:04]}  Be6 {[%clk 0:00:06]} 58. Rb7+ {[%clk 0:00:04]}  Kf6 {[%clk 0:00:06]} 59. Nd3 {[%clk 0:00:04]}  h6 {[%clk 0:00:06]} 60. Nf2 {[%clk 0:00:05]}  Rh2 {[%clk 0:00:05]} 61. Ne4+ {[%clk 0:00:05]}  Ke5 {[%clk 0:00:05]} 62. Rb6 {[%clk 0:00:06]}  Bd5 {[%clk 0:00:05]} 63. Nc3 {[%clk 0:00:06]}  Rh3 {[%clk 0:00:05]} 64. Nxd5 {[%clk 0:00:06]}  Kxd5 {[%clk 0:00:04]} 65. Rb5+ {[%clk 0:00:06]}  Ke6 {[%clk 0:00:04]} 66. Rb6+ {[%clk 0:00:07]}  Kf5 {[%clk 0:00:05]} 67. Kf2 {[%clk 0:00:07]}  Rh4 {[%clk 0:00:04]} 68. Rb5+ {[%clk 0:00:07]}  Kg6 {[%clk 0:00:04]} 69. Kg3 {[%clk 0:00:07]}  Kh5 {[%clk 0:00:05]} 70. Rb6 {[%clk 0:00:07]}  Rh1 {[%clk 0:00:05]} 71. Rc6 {[%clk 0:00:07]}  Rg1+ {[%clk 0:00:05]} 72. Kf2 {[%clk 0:00:06]}  Rb1 {[%clk 0:00:05]} 73. Kg3 {[%clk 0:00:07]}  Rb4 {[%clk 0:00:06]} 74. Kh3 {[%clk 0:00:06]}  Rf4 {[%clk 0:00:06]} 75. Kg3 {[%clk 0:00:07]}  Rf8 {[%clk 0:00:06]} 76. Kh3 {[%clk 0:00:07]}  Rxf3+ {[%clk 0:00:06]} 77. Kg2 {[%clk 0:00:03]}  Rf4 {[%clk 0:00:07]} 0-1


[Site "https://www.chess.com"]

[Event "Titled Tuesday Blitz July 4 Early 2023"]
[White "Andrej2004"]
[Black "Onufrienko, Vladislav"]
[BlackFideId "13804332"]
[WhiteElo "2681"]
[BlackElo "2391"]
[Result "0-1"]
[Round "1"]
[TimeControl "180+2"]
[Date "2023.07.04"]
[WhiteClock "0:00:49"]
[BlackClock "0:00:07"]
[Board "113"]

1. Nf3 {[%clk 0:02:59]}  d5 {[%clk 0:02:58]} 2. g3 {[%clk 0:02:58]}  Bg4 {[%clk 0:02:56]} 3. Bg2 {[%clk 0:02:59]}  Nd7 {[%clk 0:02:54]} 4. O-O {[%clk 0:02:54]}  e5 {[%clk 0:02:53]} 5. d3 {[%clk 0:02:54]}  Bd6 {[%clk 0:02:51]} 6. b3 {[%clk 0:02:54]}  f5 {[%clk 0:02:40]} 7. Bb2 {[%clk 0:02:54]}  Ngf6 {[%clk 0:02:40]} 8. h3 {[%clk 0:02:53]}  Bh5 {[%clk 0:02:40]} 9. Nbd2 {[%clk 0:02:50]}  O-O {[%clk 0:02:40]} 10. c4 {[%clk 0:02:48]}  d4 {[%clk 0:02:37]} 11. Nh4 {[%clk 0:02:46]}  Ne8 {[%clk 0:02:03]} 12. Bxb7 {[%clk 0:02:45]}  Rb8 {[%clk 0:02:03]} 13. Bg2 {[%clk 0:02:44]}  Qg5 {[%clk 0:01:58]} 14. Qe1 {[%clk 0:02:28]}  Nc5 {[%clk 0:01:50]} 15. Nhf3 {[%clk 0:01:56]}  Qh6 {[%clk 0:01:45]} 16. Bc1 {[%clk 0:01:55]}  Qf6 {[%clk 0:01:44]} 17. Ba3 {[%clk 0:01:51]}  a5 {[%clk 0:01:28]} 18. Bxc5 {[%clk 0:01:38]}  Bxc5 {[%clk 0:01:28]} 19. e3 {[%clk 0:01:39]}  dxe3 {[%clk 0:01:23]} 20. fxe3 {[%clk 0:01:39]}  Nd6 {[%clk 0:01:12]} 21. Qf2 {[%clk 0:01:36]}  Rbe8 {[%clk 0:01:00]} 22. Rae1 {[%clk 0:01:34]}  Qh6 {[%clk 0:00:56]} 23. d4 {[%clk 0:01:32]}  exd4 {[%clk 0:00:54]} 24. exd4 {[%clk 0:01:31]}  Ba7 {[%clk 0:00:52]} 25. Ne5 {[%clk 0:01:29]}  Ne4 {[%clk 0:00:31]} 26. Nxe4 {[%clk 0:01:15]}  fxe4 {[%clk 0:00:32]} 27. Qb2 {[%clk 0:01:16]}  Rxf1+ {[%clk 0:00:27]} 28. Rxf1 {[%clk 0:01:17]}  Rxe5 {[%clk 0:00:26]} 29. c5 {[%clk 0:01:17]}  Re8 {[%clk 0:00:25]} 30. Qc3 {[%clk 0:01:17]}  Bg6 {[%clk 0:00:23]} 31. Qc4+ {[%clk 0:01:16]}  Kh8 {[%clk 0:00:22]} 32. Qe6 {[%clk 0:01:16]}  Qe3+ {[%clk 0:00:20]} 33. Kh2 {[%clk 0:01:15]}  Rg8 {[%clk 0:00:18]} 34. Qe5 {[%clk 0:01:10]}  c6 {[%clk 0:00:14]} 35. Qf4 {[%clk 0:00:58]}  Qxd4 {[%clk 0:00:14]} 36. h4 {[%clk 0:00:56]}  Qxc5 {[%clk 0:00:12]} 37. Rc1 {[%clk 0:00:55]}  Qe7 {[%clk 0:00:10]} 38. Rxc6 {[%clk 0:00:55]}  Bb8 {[%clk 0:00:10]} 39. Qg4 {[%clk 0:00:55]}  Rf8 {[%clk 0:00:08]} 40. h5 {[%clk 0:00:55]}  Bf5 {[%clk 0:00:08]} 41. Qh4 {[%clk 0:00:50]}  Qxh4+ {[%clk 0:00:07]} 42. Kg1 {[%clk 0:00:49]}  Qxg3 {[%clk 0:00:07]} 0-1


[Site "https://www.chess.com"]

[Event "Titled Tuesday Blitz July 4 Early 2023"]
[White "Melikhov, Evgeny V."]
[Black "Fromm, Marius"]
[WhiteFideId "4122046"]
[BlackFideId "12993190"]
[WhiteElo "2386"]
[BlackElo "2675"]
[Result "0-1"]
[Round "1"]
[TimeControl "180+2"]
[Date "2023.07.04"]
[WhiteClock "0:00:00"]
[BlackClock "0:00:10"]
[Board "118"]

1. d4 {[%clk 0:03:00]}  d5 {[%clk 0:02:58]} 2. c4 {[%clk 0:03:00]}  e6 {[%clk 0:02:56]} 3. Nc3 {[%clk 0:03:00]}  Bb4 {[%clk 0:02:53]} 4. cxd5 {[%clk 0:02:56]}  exd5 {[%clk 0:02:52]} 5. Bf4 {[%clk 0:02:52]}  c6 {[%clk 0:02:52]} 6. e3 {[%clk 0:02:48]}  Nf6 {[%clk 0:02:51]} 7. Bd3 {[%clk 0:02:47]}  O-O {[%clk 0:02:47]} 8. Ne2 {[%clk 0:02:46]}  Re8 {[%clk 0:02:47]} 9. O-O {[%clk 0:02:42]}  Bd6 {[%clk 0:02:43]} 10. Bxd6 {[%clk 0:02:37]}  Qxd6 {[%clk 0:02:43]} 11. Ng3 {[%clk 0:02:35]}  a5 {[%clk 0:02:40]} 12. Qc2 {[%clk 0:02:30]}  g6 {[%clk 0:02:39]} 13. Rae1 {[%clk 0:02:28]}  Na6 {[%clk 0:02:39]} 14. a3 {[%clk 0:02:27]}  Nc7 {[%clk 0:02:37]} 15. f3 {[%clk 0:02:24]}  Bd7 {[%clk 0:02:27]} 16. Na4 {[%clk 0:02:14]}  Ne6 {[%clk 0:02:19]} 17. Nb6 {[%clk 0:02:09]}  Ra7 {[%clk 0:02:00]} 18. Nxd7 {[%clk 0:02:04]}  Nxd7 {[%clk 0:01:57]} 19. Qc3 {[%clk 0:01:59]}  Nf6 {[%clk 0:01:45]} 20. Bb1 {[%clk 0:01:44]}  Kg7 {[%clk 0:01:44]} 21. Bf5 {[%clk 0:01:22]}  Raa8 {[%clk 0:01:32]} 22. Bxe6 {[%clk 0:01:20]}  Qxe6 {[%clk 0:01:10]} 23. e4 {[%clk 0:01:18]}  dxe4 {[%clk 0:00:58]} 24. fxe4 {[%clk 0:01:17]}  Rad8 {[%clk 0:00:58]} 25. e5 {[%clk 0:00:57]}  Ng8 {[%clk 0:00:30]} 26. Ne4 {[%clk 0:00:51]}  h6 {[%clk 0:00:28]} 27. Nd6 {[%clk 0:00:48]}  Re7 {[%clk 0:00:26]} 28. Qg3 {[%clk 0:00:43]}  Kh7 {[%clk 0:00:24]} 29. b4 {[%clk 0:00:37]}  axb4 {[%clk 0:00:24]} 30. axb4 {[%clk 0:00:37]}  Red7 {[%clk 0:00:21]} 31. h4 {[%clk 0:00:30]}  h5 {[%clk 0:00:20]} 32. Qg5 {[%clk 0:00:27]}  Qe7 {[%clk 0:00:19]} 33. Qxe7 {[%clk 0:00:19]}  Rxe7 {[%clk 0:00:18]} 34. Nxf7 {[%clk 0:00:19]}  Rxd4 {[%clk 0:00:17]} 35. Ng5+ {[%clk 0:00:20]}  Kg7 {[%clk 0:00:18]} 36. Rf6 {[%clk 0:00:17]}  Nxf6 {[%clk 0:00:09]} 37. exf6+ {[%clk 0:00:16]}  Kxf6 {[%clk 0:00:10]} 38. Rf1+ {[%clk 0:00:15]}  Kg7 {[%clk 0:00:10]} 39. b5 {[%clk 0:00:14]}  cxb5 {[%clk 0:00:10]} 40. Rb1 {[%clk 0:00:13]}  b4 {[%clk 0:00:10]} 41. Kf2 {[%clk 0:00:11]}  Rxh4 {[%clk 0:00:10]} 42. Nf3 {[%clk 0:00:09]}  Rg4 {[%clk 0:00:11]} 43. g3 {[%clk 0:00:09]}  Rf7 {[%clk 0:00:11]} 44. Kg2 {[%clk 0:00:09]}  Rc4 {[%clk 0:00:11]} 45. Ne5 {[%clk 0:00:08]}  Rc2+ {[%clk 0:00:11]} 46. Kh3 {[%clk 0:00:09]}  Re7 {[%clk 0:00:11]} 47. Nd3 {[%clk 0:00:08]}  Ree2 {[%clk 0:00:11]} 48. g4 {[%clk 0:00:07]}  Re3+ {[%clk 0:00:10]} 49. Kh4 {[%clk 0:00:06]}  Rxd3 {[%clk 0:00:11]} 50. Rxb4 {[%clk 0:00:06]}  Rh2+ {[%clk 0:00:10]} 51. Kg5 {[%clk 0:00:06]}  Rd5+ {[%clk 0:00:10]} 52. Kf4 {[%clk 0:00:06]}  Rh4 {[%clk 0:00:10]} 53. Rxb7+ {[%clk 0:00:05]}  Kh6 {[%clk 0:00:10]} 54. Kf3 {[%clk 0:00:04]}  Rxg4 {[%clk 0:00:10]} 55. Re7 {[%clk 0:00:04]}  Rf5+ {[%clk 0:00:11]} 56. Ke3 {[%clk 0:00:04]}  h4 {[%clk 0:00:11]} 57. Re8 {[%clk 0:00:03]}  Kg5 {[%clk 0:00:11]} 58. Rh8 {[%clk 0:00:03]}  Rg3+ {[%clk 0:00:10]} 59. Ke4 {[%clk 0:00:02]}  Kg4 {[%clk 0:00:11]} 60. Rh7 {[%clk 0:00:00]}  h3 {[%clk 0:00:10]} 0-1


[Site "https://www.chess.com"]

[Event "Titled Tuesday Blitz July 4 Early 2023"]
[White "Goldin, Roman"]
[Black "Stoleriu, George"]
[WhiteFideId "2803860"]
[BlackFideId "1227505"]
[WhiteElo "2383"]
[BlackElo "2671"]
[Result "0-1"]
[Round "1"]
[TimeControl "180+2"]
[Date "2023.07.04"]
[WhiteClock "0:00:10"]
[BlackClock "0:02:16"]
[Board "120"]

1. e4 {[%clk 0:02:59]}  e6 {[%clk 0:03:00]} 2. d4 {[%clk 0:02:59]}  d5 {[%clk 0:03:00]} 3. Nd2 {[%clk 0:02:59]}  Be7 {[%clk 0:03:00]} 4. Ngf3 {[%clk 0:02:52]}  Nf6 {[%clk 0:03:01]} 5. e5 {[%clk 0:02:44]}  Nfd7 {[%clk 0:03:01]} 6. Bd3 {[%clk 0:02:44]}  c5 {[%clk 0:03:02]} 7. c3 {[%clk 0:02:45]}  Nc6 {[%clk 0:03:02]} 8. O-O {[%clk 0:02:13]}  g5 {[%clk 0:03:02]} 9. g4 {[%clk 0:01:58]}  h5 {[%clk 0:03:02]} 10. h3 {[%clk 0:01:58]}  Qb6 {[%clk 0:02:57]} 11. dxc5 {[%clk 0:01:46]}  Qc7 {[%clk 0:02:41]} 12. b4 {[%clk 0:00:59]}  hxg4 {[%clk 0:02:40]} 13. hxg4 {[%clk 0:00:58]}  Ncxe5 {[%clk 0:02:37]} 14. Nxe5 {[%clk 0:00:42]}  Nxe5 {[%clk 0:02:38]} 15. Bb5+ {[%clk 0:00:36]}  Kf8 {[%clk 0:02:36]} 16. f4 {[%clk 0:00:28]}  Ng6 {[%clk 0:02:31]} 17. Nf3 {[%clk 0:00:19]}  Nxf4 {[%clk 0:02:29]} 18. Qd4 {[%clk 0:00:10]}  Ne2+ {[%clk 0:02:16]} 0-1


[Site "https://www.chess.com"]

[Event "Titled Tuesday Blitz July 4 Early 2023"]
[White "Seletsky, Grigory"]
[Black "Hilary46"]
[WhiteFideId "14112191"]
[WhiteElo "2371"]
[BlackElo "2665"]
[Result "0-1"]
[Round "1"]
[TimeControl "180+2"]
[Date "2023.07.04"]
[WhiteClock "0:00:13"]
[BlackClock "0:01:06"]
[Board "124"]

1. e4 {[%clk 0:02:59]}  e5 {[%clk 0:03:00]} 2. Nf3 {[%clk 0:02:58]}  Nc6 {[%clk 0:03:01]} 3. Bb5 {[%clk 0:02:58]}  a6 {[%clk 0:03:01]} 4. Bxc6 {[%clk 0:02:57]}  dxc6 {[%clk 0:03:01]} 5. d4 {[%clk 0:02:57]}  exd4 {[%clk 0:03:01]} 6. Qxd4 {[%clk 0:02:58]}  Qxd4 {[%clk 0:02:58]} 7. Nxd4 {[%clk 0:02:58]}  c5 {[%clk 0:02:56]} 8. Ne2 {[%clk 0:02:58]}  Bd7 {[%clk 0:02:56]} 9. Nbc3 {[%clk 0:02:57]}  O-O-O {[%clk 0:02:56]} 10. Bd2 {[%clk 0:02:46]}  g6 {[%clk 0:02:44]} 11. O-O-O {[%clk 0:02:47]}  Bg7 {[%clk 0:02:38]} 12. Nd5 {[%clk 0:02:40]}  f5 {[%clk 0:02:34]} 13. exf5 {[%clk 0:02:37]}  Bxf5 {[%clk 0:02:33]} 14. Ne3 {[%clk 0:02:24]}  Be4 {[%clk 0:02:27]} 15. Bc3 {[%clk 0:02:23]}  Rxd1+ {[%clk 0:02:20]} 16. Rxd1 {[%clk 0:02:22]}  Bxc3 {[%clk 0:02:21]} 17. Nxc3 {[%clk 0:02:20]}  Nf6 {[%clk 0:02:15]} 18. Nxe4 {[%clk 0:02:18]}  Nxe4 {[%clk 0:02:16]} 19. f3 {[%clk 0:02:17]}  Nd6 {[%clk 0:02:15]} 20. Re1 {[%clk 0:02:07]}  Re8 {[%clk 0:02:05]} 21. c3 {[%clk 0:01:57]}  Kd7 {[%clk 0:02:04]} 22. Nc2 {[%clk 0:01:57]}  Rxe1+ {[%clk 0:02:03]} 23. Nxe1 {[%clk 0:01:57]}  Ke7 {[%clk 0:02:04]} 24. Kc2 {[%clk 0:01:48]}  Ke6 {[%clk 0:01:59]} 25. Kd3 {[%clk 0:01:49]}  Kd5 {[%clk 0:01:59]} 26. Nc2 {[%clk 0:01:48]}  c4+ {[%clk 0:01:55]} 27. Kd2 {[%clk 0:01:45]}  a5 {[%clk 0:01:37]} 28. Ke3 {[%clk 0:01:40]}  b5 {[%clk 0:01:32]} 29. g4 {[%clk 0:01:37]}  Nb7 {[%clk 0:01:29]} 30. Nd4 {[%clk 0:01:22]}  c6 {[%clk 0:01:28]} 31. f4 {[%clk 0:01:17]}  Nc5 {[%clk 0:01:28]} 32. b3 {[%clk 0:01:03]}  cxb3 {[%clk 0:01:27]} 33. axb3 {[%clk 0:00:59]}  a4 {[%clk 0:01:27]} 34. bxa4 {[%clk 0:00:59]}  bxa4 {[%clk 0:01:28]} 35. Nc2 {[%clk 0:00:57]}  Kc4 {[%clk 0:01:27]} 36. f5 {[%clk 0:00:54]}  gxf5 {[%clk 0:01:26]} 37. gxf5 {[%clk 0:00:52]}  Kxc3 {[%clk 0:01:27]} 38. Na3 {[%clk 0:00:49]}  Nd7 {[%clk 0:01:18]} 39. Kf4 {[%clk 0:00:27]}  Kb3 {[%clk 0:01:10]} 40. Nb1 {[%clk 0:00:25]}  a3 {[%clk 0:01:09]} 41. Nxa3 {[%clk 0:00:22]}  Kxa3 {[%clk 0:01:10]} 42. Kg5 {[%clk 0:00:19]}  c5 {[%clk 0:01:10]} 43. f6 {[%clk 0:00:18]}  Nxf6 {[%clk 0:01:09]} 44. Kxf6 {[%clk 0:00:19]}  c4 {[%clk 0:01:10]} 45. h4 {[%clk 0:00:18]}  c3 {[%clk 0:01:09]} 46. h5 {[%clk 0:00:19]}  c2 {[%clk 0:01:08]} 47. h6 {[%clk 0:00:18]}  c1=Q {[%clk 0:01:08]} 48. Kg7 {[%clk 0:00:18]}  Qg5+ {[%clk 0:01:08]} 49. Kh8 {[%clk 0:00:13]}  Qxh6 {[%clk 0:01:06]} 0-1


[Site "https://www.chess.com"]

[Event "Titled Tuesday Blitz July 4 Early 2023"]
[White "Czopor, Maciej"]
[Black "Rabineau, Clement"]
[WhiteFideId "21805431"]
[BlackFideId "628891"]
[WhiteElo "2665"]
[BlackElo "2370"]
[Result "1-0"]
[Round "1"]
[TimeControl "180+2"]
[Date "2023.07.04"]
[WhiteClock "0:01:29"]
[BlackClock "0:00:15"]
[Board "125"]

1. c4 {[%clk 0:02:58]}  b6 {[%clk 0:02:59]} 2. Nc3 {[%clk 0:02:57]}  Bb7 {[%clk 0:03:00]} 3. e4 {[%clk 0:02:54]}  c5 {[%clk 0:03:00]} 4. Nf3 {[%clk 0:02:54]}  e6 {[%clk 0:02:56]} 5. d4 {[%clk 0:02:51]}  cxd4 {[%clk 0:02:57]} 6. Nxd4 {[%clk 0:02:51]}  a6 {[%clk 0:02:55]} 7. Be3 {[%clk 0:02:48]}  d6 {[%clk 0:02:54]} 8. Qa4+ {[%clk 0:02:47]}  Nd7 {[%clk 0:02:52]} 9. O-O-O {[%clk 0:02:47]}  Qc7 {[%clk 0:02:51]} 10. Kb1 {[%clk 0:02:47]}  Nf6 {[%clk 0:02:51]} 11. f3 {[%clk 0:02:47]}  Be7 {[%clk 0:02:51]} 12. g4 {[%clk 0:02:43]}  O-O {[%clk 0:02:51]} 13. g5 {[%clk 0:02:40]}  Nh5 {[%clk 0:02:36]} 14. Rg1 {[%clk 0:02:38]}  Rfd8 {[%clk 0:02:12]} 15. Be2 {[%clk 0:02:31]}  g6 {[%clk 0:02:01]} 16. f4 {[%clk 0:02:30]}  e5 {[%clk 0:01:46]} 17. Nf5 {[%clk 0:02:16]}  gxf5 {[%clk 0:01:38]} 18. Bxh5 {[%clk 0:02:15]}  fxe4 {[%clk 0:01:14]} 19. f5 {[%clk 0:02:12]}  Nc5 {[%clk 0:01:02]} 20. Qc2 {[%clk 0:01:46]}  Nd3 {[%clk 0:01:01]} 21. g6 {[%clk 0:01:46]}  hxg6 {[%clk 0:01:00]} 22. Bxg6 {[%clk 0:01:34]}  fxg6 {[%clk 0:00:57]} 23. Qg2 {[%clk 0:01:34]}  g5 {[%clk 0:00:22]} 24. Bxg5 {[%clk 0:01:34]}  Kf7 {[%clk 0:00:17]} 25. Bxe7 {[%clk 0:01:29]}  Qxe7 {[%clk 0:00:15]} 26. Qg6+ {[%clk 0:01:29]} 1-0


[Site "https://www.chess.com"]

[Event "Titled Tuesday Blitz July 4 Early 2023"]
[White "San Thit Lwin"]
[Black "Taspinar, Yanki"]
[WhiteFideId "13001272"]
[BlackFideId "34561188"]
[WhiteElo "2369"]
[BlackElo "2659"]
[Result "1-0"]
[Round "1"]
[TimeControl "180+2"]
[Date "2023.07.04"]
[WhiteClock "0:00:24"]
[BlackClock "0:00:04"]
[Board "126"]

1. Nf3 {[%clk 0:02:59]}  Nf6 {[%clk 0:02:59]} 2. c4 {[%clk 0:02:59]}  c6 {[%clk 0:02:58]} 3. Nc3 {[%clk 0:03:00]}  d5 {[%clk 0:02:58]} 4. d4 {[%clk 0:03:01]}  Bg4 {[%clk 0:02:57]} 5. Ne5 {[%clk 0:03:00]}  Bf5 {[%clk 0:02:55]} 6. cxd5 {[%clk 0:02:59]}  Nxd5 {[%clk 0:02:50]} 7. Qb3 {[%clk 0:02:58]}  Nd7 {[%clk 0:02:22]} 8. Nxd5 {[%clk 0:02:53]}  cxd5 {[%clk 0:01:46]} 9. Qxd5 {[%clk 0:02:50]}  Nxe5 {[%clk 0:01:46]} 10. Qxe5 {[%clk 0:02:43]}  Bd7 {[%clk 0:01:42]} 11. e4 {[%clk 0:02:27]}  e6 {[%clk 0:01:30]} 12. Bd3 {[%clk 0:02:14]}  Bb4+ {[%clk 0:01:21]} 13. Ke2 {[%clk 0:02:13]}  O-O {[%clk 0:01:18]} 14. Be3 {[%clk 0:02:01]}  Bc6 {[%clk 0:01:09]} 15. Rhd1 {[%clk 0:01:55]}  Rc8 {[%clk 0:01:01]} 16. Rac1 {[%clk 0:01:53]}  Bd6 {[%clk 0:00:43]} 17. Qh5 {[%clk 0:01:51]}  g6 {[%clk 0:00:39]} 18. Qh6 {[%clk 0:01:44]}  Re8 {[%clk 0:00:27]} 19. Kf1 {[%clk 0:01:27]}  Bf8 {[%clk 0:00:25]} 20. Qg5 {[%clk 0:01:25]}  Qxg5 {[%clk 0:00:22]} 21. Bxg5 {[%clk 0:01:25]}  Bg7 {[%clk 0:00:23]} 22. Be3 {[%clk 0:01:24]}  Red8 {[%clk 0:00:23]} 23. Bb1 {[%clk 0:01:20]}  f5 {[%clk 0:00:22]} 24. f3 {[%clk 0:01:19]}  Kf7 {[%clk 0:00:14]} 25. Ke2 {[%clk 0:01:15]}  Bb5+ {[%clk 0:00:14]} 26. Bd3 {[%clk 0:01:12]}  Rxc1 {[%clk 0:00:13]} 27. Rxc1 {[%clk 0:01:11]}  Bc6 {[%clk 0:00:13]} 28. Rc4 {[%clk 0:01:03]}  Rd7 {[%clk 0:00:14]} 29. b4 {[%clk 0:00:55]}  Bb5 {[%clk 0:00:11]} 30. Rc5 {[%clk 0:00:53]}  Ba4 {[%clk 0:00:09]} 31. Ra5 {[%clk 0:00:51]}  b5 {[%clk 0:00:09]} 32. d5 {[%clk 0:00:48]}  exd5 {[%clk 0:00:08]} 33. exf5 {[%clk 0:00:48]}  d4 {[%clk 0:00:07]} 34. fxg6+ {[%clk 0:00:45]}  hxg6 {[%clk 0:00:08]} 35. Bf4 {[%clk 0:00:45]}  Re7+ {[%clk 0:00:08]} 36. Kd2 {[%clk 0:00:45]}  Bf8 {[%clk 0:00:05]} 37. a3 {[%clk 0:00:43]}  Rd7 {[%clk 0:00:04]} 38. Bb8 {[%clk 0:00:42]}  Bh6+ {[%clk 0:00:03]} 39. Ke2 {[%clk 0:00:41]}  Re7+ {[%clk 0:00:03]} 40. Kf1 {[%clk 0:00:40]}  Re3 {[%clk 0:00:02]} 41. Rxa7+ {[%clk 0:00:39]}  Kf6 {[%clk 0:00:02]} 42. Be4 {[%clk 0:00:39]}  Rc3 {[%clk 0:00:02]} 43. Rd7 {[%clk 0:00:39]}  Be3 {[%clk 0:00:02]} 44. Ke2 {[%clk 0:00:37]}  Rb3 {[%clk 0:00:01]} 45. f4 {[%clk 0:00:35]}  Rb2+ {[%clk 0:00:02]} 46. Kf3 {[%clk 0:00:35]}  Bd1+ {[%clk 0:00:03]} 47. Kg3 {[%clk 0:00:34]}  Bf2+ {[%clk 0:00:03]} 48. Kh3 {[%clk 0:00:35]}  Be3 {[%clk 0:00:04]} 49. Be5+ {[%clk 0:00:33]}  Ke6 {[%clk 0:00:04]} 50. Rxd4 {[%clk 0:00:32]}  Bxd4 {[%clk 0:00:04]} 51. Bxd4 {[%clk 0:00:33]}  Rb3+ {[%clk 0:00:04]} 52. Kh4 {[%clk 0:00:32]}  Rxa3 {[%clk 0:00:04]} 53. Bxg6 {[%clk 0:00:31]}  Kd5 {[%clk 0:00:05]} 54. Bc5 {[%clk 0:00:30]}  Ra8 {[%clk 0:00:04]} 55. f5 {[%clk 0:00:30]}  Ke5 {[%clk 0:00:05]} 56. g4 {[%clk 0:00:29]}  Bc2 {[%clk 0:00:05]} 57. Kg5 {[%clk 0:00:28]}  Ra1 {[%clk 0:00:06]} 58. h4 {[%clk 0:00:27]}  Rg1 {[%clk 0:00:06]} 59. f6 {[%clk 0:00:25]}  Bd1 {[%clk 0:00:06]} 60. Bxg1 {[%clk 0:00:24]}  Ke6 {[%clk 0:00:05]} 61. Bc5 {[%clk 0:00:24]}  Bb3 {[%clk 0:00:05]} 62. Bf5+ {[%clk 0:00:24]}  Kf7 {[%clk 0:00:04]} 63. h5 {[%clk 0:00:23]}  Kg8 {[%clk 0:00:02]} 64. Bg6 {[%clk 0:00:23]}  Kh8 {[%clk 0:00:02]} 65. Kf4 {[%clk 0:00:22]}  Bg8 {[%clk 0:00:03]} 66. g5 {[%clk 0:00:22]}  Bd5 {[%clk 0:00:01]} 67. Ke5 {[%clk 0:00:23]}  Bg8 {[%clk 0:00:02]} 68. Kd6 {[%clk 0:00:24]}  Bf7 {[%clk 0:00:02]} 69. Kc7 {[%clk 0:00:25]}  Kg8 {[%clk 0:00:02]} 70. Bxf7+ {[%clk 0:00:25]}  Kh7 {[%clk 0:00:03]} 71. Bg6+ {[%clk 0:00:24]}  Kg8 {[%clk 0:00:03]} 72. f7+ {[%clk 0:00:24]}  Kg7 {[%clk 0:00:04]} 73. f8=Q# {[%clk 0:00:24]} 1-0


[Site "https://www.chess.com"]